lending/lending_fUSD_20250122
["ID","MTS","AMOUNT","RATE_DAILY","PERIOD"]
[349951233,1737533446388,-1578.78,0.00019448,2]
[349951235,1737533446398,-944.9,0.00019448,2]
[349951237,1737533446407,-771.1,0.00019448,2]
[349951239,1737533446417,-500.0,0.00019448,2]
[349951241,1737533446426,-500.0,0.00019448,2]
[349951243,1737533446435,-572.72,0.00019448,2]
[349951246,1737533446445,-500.0,0.00019448,2]
[349951248,1737533446455,-532.29,0.00019448,2]
[349951250,1737533446464,-1270.45,0.00019448,2]
[349951252,1737533446473,-500.0,0.00019448,2]
[349951254,1737533446482,-500.0,0.00019448,2]
[349951256,1737533446491,-500.0,0.00019448,2]
[349951258,1737533446500,-1667.52,0.00019448,2]
[349951259,1737533446510,-294.82772123,0.00019448,2]
[349951260,1737533446519,-1063.99,0.00019448,2]
[349951261,1737533446529,-1782.89,0.00019448,2]
[349951262,1737533446539,-2439.37,0.00019448,2]
[349951263,1737533446548,-566.64,0.00019448,2]
[349951264,1737533446557,-926.56,0.00019448,2]
[349951265,1737533446566,-2684.11,0.00019448,2]
[349951266,1737533446575,-500.0,0.00019448,2]
[349951267,1737533446585,-859.05,0.00019448,2]
[349951268,1737533446594,-2893.55,0.00019448,2]
[349951269,1737533446604,-827.18,0.00019448,2]
[349951270,1737533446614,-1302.26,0.00019448,2]
[349951271,1737533446626,-2479.2,0.00019448,2]
[349951272,1737533446639,-1317.89,0.00019448,2]
[349951273,1737533446649,-915.46,0.00019448,2]
[349951274,1737533446658,-5522.35,0.00019448,2]
[349951275,1737533446667,-621.19,0.00019448,2]
[349951276,1737533446677,-1169.01,0.00019448,2]
[349951277,1737533446687,-1753.68,0.00019448,2]
[349951278,1737533446696,-510.87666195,0.00019448,2]
[349951279,1737533446706,-504.73702692,0.00019448,2]
[349951280,1737533446715,-9004.86,0.00019448,2]
[349951281,1737533446725,-500.0,0.00019448,2]
[349951282,1737533446734,-500.0,0.00019448,2]
[349951283,1737533446744,-500.0,0.00019448,2]
[349951284,1737533446753,-541.51,0.00019448,2]
[349951285,1737533446762,-500.0,0.00019448,2]
[349951286,1737533446772,-583.57,0.00019448,2]
[349951287,1737533446783,-602.04,0.00019448,2]
[349951288,1737533446792,-500.0,0.00019448,2]
[349951289,1737533446802,-500.0,0.00019448,2]
[349951290,1737533446811,-500.0,0.00019448,2]
[349951291,1737533446820,-1196.83,0.00019448,2]
[349951292,1737533446830,-500.0,0.00019448,2]
[349951293,1737533446839,-897.38,0.00019448,2]
[349951294,1737533446848,-500.0,0.00019448,2]
[349951295,1737533446858,-4666.52,0.00019448,2]
[349951296,1737533446867,-728.63,0.00019448,2]
[349951297,1737533446876,-1057.95,0.00019448,2]
[349951298,1737533446890,-549.12,0.00019448,2]
[349951299,1737533446900,-500.0,0.00019448,2]
[349951300,1737533446909,-500.0,0.00019448,2]
[349951301,1737533446919,-844.4,0.00019448,2]
[349951302,1737533446928,-1275.08,0.00019448,2]
[349951303,1737533446937,-500.0,0.00019448,2]
[349951304,1737533446947,-515.24519522,0.00019448,2]
[349951305,1737533446956,-193.99731201,0.00019448,2]
[349951306,1737533446966,-2792.66,0.00019448,2]
[349951307,1737533446975,-500.0,0.00019448,2]
[349951308,1737533446985,-3455.34,0.00019448,2]
[349951309,1737533446994,-500.0,0.00019448,2]
[349951310,1737533447005,-500.0,0.00019448,2]
[349951311,1737533447014,-768.41,0.00019448,2]
[349951312,1737533447024,-597.95,0.00019448,2]
[349951313,1737533447034,-1159.49,0.00019448,2]
[349951314,1737533447043,-1378.34,0.00019448,2]
[349951315,1737533447053,-3002.88,0.00019448,2]
[349951316,1737533447063,-500.0,0.00019448,2]
[349951317,1737533447073,-1925.85,0.00019448,2]
[349951318,1737533447082,-500.0,0.00019448,2]
[349951319,1737533447092,-863.51,0.00019448,2]
[349951320,1737533447101,-500.0,0.00019448,2]
[349951321,1737533447111,-1838.04,0.00019448,2]
[349951322,1737533447121,-500.0,0.00019448,2]
[349951323,1737533447139,-607.09,0.00019448,2]
[349951324,1737533447149,-1204.93,0.00019448,2]
[349951325,1737533447159,-500.0,0.00019448,2]
[349951326,1737533447170,-507.05,0.00019448,2]
[349951327,1737533447180,-500.0,0.00019448,2]
[349951328,1737533447190,-688.23,0.00019448,2]
[349951329,1737533447199,-510.94441253,0.00019448,2]
[349951330,1737533447211,-2803.97,0.00019448,2]
[349951331,1737533447221,-500.0,0.00019448,2]
[349951332,1737533447230,-2690.12,0.00019448,2]
[349951333,1737533447240,-1000.0,0.00019448,2]
[349951334,1737533447249,-690.26,0.00019448,2]
[349951335,1737533447259,-500.0,0.00019448,2]
[349951336,1737533447268,-1368.88,0.00019448,2]
[349951337,1737533447277,-500.0,0.00019448,2]
[349951338,1737533447286,-811.67,0.00019448,2]
[349951339,1737533447296,-386.14541892,0.00019448,2]
[349951340,1737533447305,-834.87,0.00019448,2]
[349951341,1737533447315,-500.0,0.00019448,2]
[349951342,1737533447325,-500.0,0.00019448,2]
[349951343,1737533447333,-500.0,0.00019448,2]
[349951344,1737533447341,-500.0,0.00019448,2]
[349951345,1737533447350,-500.0,0.00019448,2]
[349951346,1737533447359,-945.75,0.00019448,2]
[349951347,1737533447368,-500.0,0.00019448,2]
[349951348,1737533447377,-2752.94,0.00019448,2]
[349951349,1737533447389,-500.0,0.00019448,2]
[349951350,1737533447398,-500.0,0.00019448,2]
[349951351,1737533447407,-500.0,0.00019449,2]
[349951352,1737533447416,-500.0,0.00019449,2]
[349951353,1737533447425,-504.44732645,0.00019449,2]
[349951354,1737533447435,-500.0,0.00019449,2]
[349951355,1737533447444,-500.0,0.00019449,2]
[349951356,1737533447454,-620.0000525,0.00019449,2]
[349951357,1737533447463,-500.0,0.00019449,2]
[349951358,1737533447473,-364.81074153,0.00019449,2]
[349951359,1737533447482,-594.31,0.00019449,2]
[349951360,1737533447492,-505.53640474,0.00019449,2]
[349951361,1737533447501,-176.90101738,0.00019449,7]
[349951362,1737533447510,-500.0,0.00019449,2]
[349951363,1737533447519,-500.0,0.00019449,2]
[349951364,1737533447528,-500.0,0.00019449,2]
[349951365,1737533447538,-500.0,0.00019449,2]
[349951366,1737533447548,-500.0,0.00019449,2]
[349951367,1737533447557,-500.0,0.00019449,2]
[349951368,1737533447566,-500.0,0.00019449,2]
[349951369,1737533447576,-633.49,0.00019449,2]
[349951370,1737533447586,-500.0,0.00019449,2]
[349951371,1737533447596,-500.0,0.00019449,2]
[349951372,1737533447606,-500.0,0.00019449,2]
[349951373,1737533447615,-500.0,0.00019449,2]
[349951374,1737533447625,-347.59210135,0.00019449,2]
[349951375,1737533447637,-500.0,0.00019449,2]
[349951376,1737533447647,-500.0,0.00019449,2]
[349951377,1737533447657,-500.0,0.00019449,2]
[349951378,1737533447667,-300.0,0.00019449,2]
[349951379,1737533447677,-500.0,0.00019449,2]
[349951380,1737533447687,-500.0,0.00019449,2]
[349951381,1737533447697,-651.93,0.00019449,2]
[349951382,1737533447706,-500.0,0.00019449,2]
[349951383,1737533447716,-500.0,0.00019449,2]
[349951384,1737533447725,-500.0,0.00019449,2]
[349951385,1737533447735,-500.0,0.00019449,2]
[349951386,1737533447744,-500.0,0.00019449,2]
[349951387,1737533447753,-500.0,0.00019449,2]
[349951388,1737533447763,-500.0,0.00019449,2]
[349951389,1737533447772,-500.0,0.00019449,2]
[349951390,1737533447782,-500.0,0.00019449,2]
[349951391,1737533447791,-500.0,0.00019449,2]
[349951392,1737533447800,-500.0,0.00019449,2]
[349951393,1737533447816,-500.0,0.00019449,2]
[349951394,1737533447826,-500.0,0.00019449,2]
[349951395,1737533447835,-500.0,0.00019449,2]
[349951396,1737533447844,-500.0,0.00019449,2]
[349951397,1737533447854,-500.0,0.00019449,2]
[349951398,1737533447864,-500.0,0.00019449,2]
[349951399,1737533447875,-968.26,0.00019449,2]
[349951400,1737533447885,-500.0,0.00019449,2]
[349951401,1737533447894,-500.0,0.00019449,2]
[349951402,1737533447904,-500.0,0.00019449,2]
[349951403,1737533447912,-500.0,0.00019449,2]
[349951404,1737533447921,-500.0,0.00019449,2]
[349951405,1737533447929,-500.0,0.00019449,2]
[349951406,1737533447938,-506.18,0.00019449,2]
[349951407,1737533447947,-500.0,0.00019449,2]
[349951408,1737533447956,-500.0,0.00019449,2]
[349951409,1737533447967,-500.0,0.00019449,2]
[349951410,1737533447976,-500.0,0.00019449,2]
[349951411,1737533447984,-500.0,0.00019449,2]
[349951412,1737533447993,-500.0,0.00019449,2]
[349951413,1737533448002,-500.0,0.00019449,2]
[349951414,1737533448011,-500.0,0.00019449,2]
[349951415,1737533448024,-500.0,0.00019449,2]
[349951416,1737533448034,-500.0,0.00019449,2]
[349951417,1737533448045,-500.0,0.00019449,2]
[349951418,1737533448055,-500.0,0.00019449,2]
[349951419,1737533448065,-500.0,0.00019449,2]
[349951420,1737533448075,-521.37661701,0.00019449,2]
[349951421,1737533448085,-500.0,0.00019449,2]
[349951422,1737533448094,-904.23,0.00019449,2]
[349951423,1737533448104,-500.0,0.00019449,2]
[349951424,1737533448114,-500.0,0.00019449,2]
[349951425,1737533448124,-500.0,0.00019449,2]
[349951426,1737533448135,-500.0,0.00019449,2]
[349951427,1737533448145,-500.0,0.00019449,2]
[349951428,1737533448155,-500.0,0.00019449,2]
[349951429,1737533448165,-431.53069898,0.00019449,2]
[349951430,1737533448175,-1214.06,0.00019449,2]
[349951431,1737533448185,-169.47702878,0.00019449,2]
[349951432,1737533448195,-500.0,0.00019449,2]
[349951433,1737533448205,-589.1,0.00019449,2]
[349951434,1737533448217,-500.0,0.00019449,2]
[349951435,1737533448228,-500.0,0.00019449,2]
[349951436,1737533448239,-500.0,0.00019449,2]
[349951437,1737533448249,-753.46,0.00019449,2]
[349951438,1737533448259,-669.35,0.00019449,2]
[349951439,1737533448269,-500.0,0.00019449,2]
[349951440,1737533448279,-500.0,0.00019449,2]
[349951441,1737533448289,-500.0,0.00019449,2]
[349951442,1737533448299,-500.0,0.00019449,2]
[349951443,1737533448309,-500.0,0.00019449,2]
[349951444,1737533448318,-500.0,0.00019449,2]
[349951445,1737533448327,-500.0,0.00019449,2]
[349951446,1737533448491,-500.0,0.00019449,2]
[349951447,1737533448501,-500.0,0.00019449,2]
[349951448,1737533448513,-500.0,0.00019449,2]
[349951449,1737533448524,-1380.55,0.00019449,2]
[349951450,1737533448533,-500.0,0.00019449,2]
[349951451,1737533448543,-865.05,0.00019449,2]
[349951452,1737533448553,-500.0,0.00019449,2]
[349951453,1737533448562,-699.54,0.00019449,2]
[349951454,1737533448571,-1176.41,0.00019449,2]
[349951455,1737533448580,-500.0,0.00019449,2]
[349951456,1737533448589,-500.0,0.00019449,2]
[349951457,1737533448598,-500.0,0.00019449,2]
[349951458,1737533448607,-1015.61,0.00019449,2]
[349951459,1737533448616,-500.0,0.00019449,2]
[349951460,1737533448625,-500.0,0.00019449,2]
[349951461,1737533448636,-500.0,0.00019449,2]
[349951462,1737533448645,-347.14657108,0.00019449,2]
[349951463,1737533448655,-500.0,0.00019449,2]
[349951464,1737533448664,-500.0,0.00019449,2]
[349951465,1737533448673,-500.0,0.00019449,2]
[349951466,1737533448683,-825.23,0.00019449,2]
[349951467,1737533448692,-512.22749661,0.00019449,2]
[349951468,1737533448700,-500.0,0.00019449,2]
[349951469,1737533448709,-500.0,0.00019449,2]
[349951470,1737533448719,-500.0,0.00019449,2]
[349951471,1737533448729,-500.0,0.00019449,2]
[349951472,1737533448740,-3618.18168789,0.0001952,2]
[349951473,1737533448750,-2163.08986919,0.00019521,2]
[349951474,1737533448760,-3618.18168789,0.00019693,2]
[349951475,1737533448769,-2163.08986919,0.00019694,2]
[349951476,1737533448778,-2484.71,0.00019721,2]
[349951477,1737533448788,-500.0,0.00019721,2]
[349951478,1737533448798,-1165.0,0.00019721,2]
[349951479,1737533448807,-3822.18,0.00019721,2]
[349951480,1737533448817,-2524.65,0.00019721,2]
[349951481,1737533448827,-1388.038371,0.00019721,2]
[349951482,1737533448837,-1637.45,0.00019721,2]
[349951483,1737533448847,-924.26,0.00019721,2]
[349951484,1737533448857,-500.0,0.00019721,2]
[349951485,1737533448866,-907.0,0.00019721,2]
[349951486,1737533448876,-500.0,0.00019721,2]
[349951487,1737533448888,-1203.49,0.00019721,2]
[349951488,1737533448898,-981.081555,0.00019721,2]
[349951489,1737533448908,-1936.49,0.00019721,2]
[349951490,1737533448918,-500.0,0.00019721,2]
[349951491,1737533448929,-1505.27,0.00019721,2]
[349951492,1737533448939,-1054.98,0.00019721,2]
[349951493,1737533448949,-2445.81,0.00019721,2]
[349951494,1737533448959,-1091.51,0.00019721,2]
[349951495,1737533448969,-500.0,0.00019721,2]
[349951496,1737533448979,-1233.73,0.00019721,2]
[349951497,1737533448989,-938.06,0.00019721,2]
[349951498,1737533448999,-500.0,0.00019721,2]
[349951499,1737533449010,-3323.8,0.00019721,2]
[349951500,1737533449020,-639.76,0.00019721,2]
[349951501,1737533449030,-907.35,0.00019721,2]
[349951502,1737533449041,-2815.79,0.00019721,2]
[349951503,1737533449051,-564.66,0.00019721,2]
[349951504,1737533449062,-1191.12,0.00019721,2]
[349951505,1737533449072,-1323.1,0.00019721,2]
[349951506,1737533449081,-1570.1,0.00019721,2]
[349951507,1737533449091,-1127.39,0.00019721,2]
[349951508,1737533449101,-1497.74,0.00019721,2]
[349951509,1737533449111,-500.0,0.00019721,2]
[349951510,1737533449121,-1186.63,0.00019721,2]
[349951511,1737533449131,-2609.94,0.00019721,2]
[349951512,1737533449144,-647.29,0.00019721,2]
[349951513,1737533449154,-534.69,0.00019721,2]
[349951514,1737533449163,-500.0,0.00019721,2]
[349951515,1737533449176,-3444.85,0.00019721,2]
[349951516,1737533449186,-942.41,0.00019721,2]
[349951517,1737533449195,-1338.45,0.00019721,2]
[349951518,1737533449204,-2297.01,0.00019721,2]
[349951519,1737533449215,-1466.53,0.00019721,2]
[349951520,1737533449226,-1179.17,0.00019721,2]
[349951521,1737533449237,-1158.4,0.00019721,2]
[349951522,1737533449247,-1538.74,0.00019721,2]
[349951523,1737533449257,-4243.2,0.00019721,2]
[349951524,1737533449267,-934.98,0.00019721,2]
[349951525,1737533449276,-500.0,0.00019721,2]
[349951526,1737533449286,-1223.19,0.00019721,2]
[349951527,1737533449296,-500.0,0.00019721,2]
[349951528,1737533449306,-924.77,0.00019721,2]
[349951529,1737533449315,-500.0,0.00019721,2]
[349951530,1737533449325,-2901.46,0.00019721,2]
[349951531,1737533449335,-873.86,0.00019721,2]
[349951532,1737533449345,-556.24,0.00019721,2]
[349951533,1737533449355,-1102.66,0.00019721,2]
[349951534,1737533449365,-500.0,0.00019721,2]
[349951535,1737533449375,-608.83,0.00019721,2]
[349951536,1737533449386,-500.0,0.00019721,2]
[349951537,1737533449395,-716.64,0.00019721,2]
[349951538,1737533449405,-500.0,0.00019721,2]
[349951539,1737533449415,-500.0,0.00019722,2]
[349951540,1737533449424,-500.0,0.00019722,2]
[349951541,1737533449435,-500.0,0.00019722,2]
[349951542,1737533449445,-500.0,0.00019722,2]
[349951543,1737533449455,-500.0,0.00019722,2]
[349951544,1737533449465,-500.0,0.00019722,2]
[349951545,1737533449475,-500.0,0.00019722,2]
[349951546,1737533449484,-676.12,0.00019722,2]
[349951547,1737533449494,-500.0,0.00019722,2]
[349951548,1737533449504,-382.49000001,0.00019722,2]
[349951549,1737533449514,-500.0,0.00019722,2]
[349951550,1737533449523,-749.05,0.00019722,2]
[349951551,1737533449532,-500.0,0.00019722,2]
[349951552,1737533449543,-922.92,0.00019722,2]
[349951553,1737533449555,-500.0,0.00019722,2]
[349951554,1737533449565,-500.0,0.00019722,2]
[349951555,1737533449574,-500.0,0.00019722,2]
[349951556,1737533449583,-500.0,0.00019722,2]
[349951557,1737533449592,-500.0,0.00019722,2]
[349951558,1737533449602,-701.63,0.00019722,2]
[349951559,1737533449613,-1004.38,0.00019722,2]
[349951560,1737533449623,-500.0,0.00019722,2]
[349951561,1737533449633,-500.0,0.00019722,2]
[349951562,1737533449645,-500.0,0.00019722,2]
[349951563,1737533449655,-500.0,0.00019722,2]
[349951564,1737533449664,-634.72256901,0.00019722,2]
[349951565,1737533449674,-500.0,0.00019722,2]
[349951566,1737533449683,-704.87,0.00019722,2]
[349951567,1737533449693,-500.0,0.00019722,2]
[349951568,1737533449702,-500.0,0.00019722,2]
[349951569,1737533449711,-500.0,0.00019722,2]
[349951570,1737533449720,-500.0,0.00019722,2]
[349951571,1737533449730,-500.0,0.00019722,2]
[349951572,1737533449747,-500.0,0.00019722,2]
[349951573,1737533449756,-500.0,0.00019722,2]
[349951574,1737533449765,-592.68,0.00019722,2]
[349951575,1737533449774,-519.69,0.00019722,2]
[349951576,1737533449783,-606.65,0.00019722,2]
[349951577,1737533449792,-500.0,0.00019722,2]
[349951578,1737533449801,-500.0,0.00019722,2]
[349951579,1737533449811,-500.0,0.00019722,2]
[349951580,1737533449820,-500.0,0.00019722,2]
[349951581,1737533449830,-975.86,0.00019722,2]
[349951582,1737533449839,-938.53,0.00019722,2]
[349951583,1737533449849,-500.0,0.00019722,2]
[349951584,1737533449860,-500.0,0.00019722,2]
[349951585,1737533449869,-500.0,0.00019722,2]
[349951586,1737533449880,-500.0,0.00019722,2]
[349951587,1737533449892,-500.0,0.00019722,2]
[349951588,1737533449902,-500.0,0.00019722,2]
[349951589,1737533449911,-500.0,0.00019722,2]
[349951590,1737533449920,-500.0,0.00019722,2]
[349951591,1737533449929,-880.58,0.00019722,2]
[349951592,1737533449938,-500.0,0.00019722,2]
[349951593,1737533449947,-526.2,0.00019722,2]
[349951594,1737533449957,-500.0,0.00019722,2]
[349951595,1737533449966,-500.0,0.00019722,2]
[349951596,1737533449975,-500.0,0.00019722,2]
[349951597,1737533449985,-500.0,0.00019722,2]
[349951598,1737533449999,-500.0,0.00019722,2]
[349951599,1737533450008,-500.0,0.00019722,2]
[349951600,1737533450018,-500.0,0.00019722,2]
[349951601,1737533450027,-500.0,0.00019722,2]
[349951602,1737533450037,-1120.77,0.00019722,2]
[349951603,1737533450047,-500.0,0.00019722,2]
[349951604,1737533450056,-638.06,0.00019722,2]
[349951605,1737533450066,-500.0,0.00019722,2]
[349951606,1737533450075,-500.0,0.00019722,2]
[349951607,1737533450085,-990.01,0.00019722,2]
[349951608,1737533450095,-500.0,0.00019722,2]
[349951609,1737533450105,-653.85,0.00019722,2]
[349951610,1737533450115,-500.0,0.00019722,2]
[349951611,1737533450125,-602.02,0.00019722,2]
[349951612,1737533450136,-500.0,0.00019722,2]
[349951613,1737533450148,-500.0,0.00019722,2]
[349951614,1737533450156,-1095.6,0.00019722,2]
[349951615,1737533450167,-594.76,0.00019722,2]
[349951616,1737533450178,-825.45,0.00019722,2]
[349951617,1737533450187,-500.0,0.00019722,2]
[349951618,1737533450197,-1233.79,0.00019722,2]
[349951619,1737533450207,-500.0,0.00019722,2]
[349951620,1737533450216,-1272.29,0.00019722,2]
[349951621,1737533450227,-557.35,0.00019722,2]
[349951622,1737533450236,-716.67,0.00019722,2]
[349951623,1737533450246,-500.0,0.00019722,2]
[349951624,1737533450256,-500.0,0.00019722,2]
[349951625,1737533450267,-500.0,0.00019722,2]
[349951626,1737533450276,-500.0,0.00019722,2]
[349951627,1737533450286,-500.0,0.00019722,2]
[349951628,1737533450296,-500.0,0.00019722,2]
[349951629,1737533450306,-500.0,0.00019722,2]
[349951630,1737533450316,-793.57,0.00019722,2]
[349951631,1737533450327,-500.0,0.00019722,2]
[349951632,1737533450338,-500.0,0.00019722,2]
[349951633,1737533450347,-950.61,0.00019722,2]
[349951634,1737533450356,-500.0,0.00019722,2]
[349951635,1737533450366,-500.0,0.00019722,2]
[349951636,1737533450376,-923.24,0.00019722,2]
[349951637,1737533450390,-897.61,0.00019722,2]
[349951638,1737533450400,-500.0,0.00019722,2]
[349951639,1737533450410,-500.0,0.00019722,2]
[349951640,1737533450419,-597.75,0.00019722,2]
[349951641,1737533450428,-500.0,0.00019722,2]
[349951642,1737533450437,-500.0,0.00019722,2]
[349951643,1737533450447,-500.0,0.00019722,2]
[349951644,1737533450456,-208.57681519,0.00019722,2]
[349951645,1737533450466,-500.0,0.00019722,2]
[349951646,1737533450475,-641.97,0.00019722,2]
[349951647,1737533450485,-1223.75,0.00019722,2]
[349951648,1737533450494,-621.72,0.00019722,2]
[349951649,1737533450504,-500.0,0.00019722,2]
[349951650,1737533450514,-590.57,0.00019722,2]
[349951651,1737533450523,-524.4,0.00019722,2]
[349951652,1737533450532,-985.24,0.00019722,2]
[349951653,1737533450542,-500.0,0.00019722,2]
[349951654,1737533450552,-500.0,0.00019722,2]
[349951655,1737533450561,-500.0,0.00019722,2]
[349951656,1737533450571,-500.0,0.00019722,2]
[349951657,1737533450580,-500.0,0.00019722,2]
[349951658,1737533450590,-500.0,0.00019722,2]
[349951659,1737533450599,-500.0,0.00019722,2]
[349951660,1737533450609,-489.15548484,0.00019722,2]
[349951661,1737533450619,-333.71716556,0.00019722,2]
[349951662,1737533450629,-550.49,0.00019722,2]
[349951663,1737533450641,-500.0,0.00019722,2]
[349951664,1737533450650,-500.0,0.00019722,2]
[349951665,1737533450659,-500.0,0.00019722,2]
[349951666,1737533450669,-937.85,0.00019722,2]
[349951667,1737533450678,-1628.26,0.00019722,2]
[349951668,1737533450688,-592.46,0.00019722,2]
[349951669,1737533450697,-500.0,0.00019722,2]
[349951670,1737533450705,-950.95,0.00019722,2]
[349951671,1737533450715,-500.0,0.00019722,2]
[349951672,1737533450724,-500.0,0.00019722,2]
[349951673,1737533450734,-1028.76,0.00019722,2]
[349951674,1737533450743,-500.0,0.00019722,2]
[349951675,1737533450753,-500.0,0.00019722,2]
[349951676,1737533450763,-500.0,0.00019722,2]
[349951677,1737533450772,-827.8,0.00019722,2]
[349951678,1737533450781,-770.3,0.00019722,2]
[349951679,1737533450791,-500.0,0.00019722,2]
[349951680,1737533450801,-629.9,0.00019722,2]
[349951681,1737533450810,-913.52,0.00019722,2]
[349951682,1737533450819,-1077.59,0.00019722,2]
[349951683,1737533450828,-889.19,0.00019722,2]
[349951684,1737533450838,-500.0,0.00019722,2]
[349951685,1737533450847,-1068.38,0.00019722,2]
[349951686,1737533450857,-500.0,0.00019722,2]
[349951687,1737533450867,-646.32,0.00019722,2]
[349951688,1737533450878,-500.0,0.00019722,2]
[349951689,1737533450891,-500.0,0.00019722,2]
[349951690,1737533450942,-500.0,0.00019722,2]
[349951691,1737533450951,-500.0,0.00019722,2]
[349951692,1737533450960,-500.0,0.00019722,2]
[349951693,1737533450970,-500.0,0.00019722,2]
[349951694,1737533450978,-500.0,0.00019722,2]
[349951695,1737533450987,-500.0,0.00019722,2]
[349951696,1737533450996,-956.44,0.00019722,2]
[349951697,1737533451004,-823.7,0.00019722,2]
[349951698,1737533451013,-500.0,0.00019722,2]
[349951699,1737533451022,-500.0,0.00019722,2]
[349951700,1737533451031,-962.29,0.00019722,2]
[349951701,1737533451039,-500.0,0.00019722,2]
[349951702,1737533451048,-842.56,0.00019722,2]
[349951703,1737533451056,-622.33,0.00019722,2]
[349951704,1737533451065,-500.0,0.00019722,2]
[349951705,1737533451074,-500.0,0.00019722,2]
[349951706,1737533451083,-1578.78,0.00019722,2]
[349951707,1737533451092,-944.9,0.00019722,2]
[349951708,1737533451101,-771.1,0.00019722,2]
[349951709,1737533451110,-500.0,0.00019722,2]
[349951710,1737533451120,-572.72,0.00019722,2]
[349951711,1737533451130,-500.0,0.00019722,2]
[349951712,1737533451142,-532.29,0.00019722,2]
[349951713,1737533451151,-1270.45,0.00019722,2]
[349951714,1737533451160,-500.0,0.00019722,2]
[349951715,1737533451171,-1667.52,0.00019722,2]
[349951716,1737533451180,-1063.99,0.00019722,2]
[349951717,1737533451189,-1782.89,0.00019722,2]
[349951718,1737533451198,-2439.37,0.00019722,2]
[349951719,1737533451207,-566.64,0.00019722,2]
[349951720,1737533451217,-926.56,0.00019722,2]
[349951721,1737533451227,-2684.11,0.00019722,2]
[349951722,1737533451237,-500.0,0.00019722,2]
[349951723,1737533451246,-859.05,0.00019722,2]
[349951724,1737533451255,-2893.55,0.00019722,2]
[349951725,1737533451265,-827.18,0.00019722,2]
[349951726,1737533451276,-1302.26,0.00019722,2]
[349951727,1737533451285,-2479.2,0.00019722,2]
[349951728,1737533451294,-1317.89,0.00019722,2]
[349951729,1737533451304,-915.46,0.00019722,2]
[349951730,1737533451313,-5522.35,0.00019722,2]
[349951731,1737533451323,-621.19,0.00019722,2]
[349951732,1737533451331,-1169.01,0.00019722,2]
[349951733,1737533451341,-1753.68,0.00019722,2]
[349951734,1737533451350,-9004.86,0.00019722,2]
[349951735,1737533451359,-500.0,0.00019722,2]
[349951736,1737533451369,-500.0,0.00019722,2]
[349951737,1737533451378,-500.0,0.00019722,2]
[349951738,1737533451391,-541.51,0.00019722,2]
[349951739,1737533451400,-500.0,0.00019722,2]
[349951740,1737533451409,-583.57,0.00019722,2]
[349951741,1737533451418,-602.04,0.00019722,2]
[349951742,1737533451428,-527.78,0.00019722,2]
[349951743,1737533451437,-500.0,0.00019722,2]
[349951744,1737533451446,-500.0,0.00019722,2]
[349951745,1737533451455,-1196.83,0.00019722,2]